Cogmind - Beta 15 @@@ ROGUE MODE // 2025.05.26 @ 12:28:03 Player: G4-R3D Result: Destroyed by S-27 Virus with Autogun Performance ------------- Evolutions (5) 2500 Regions Visited (4) 800 Robots Destroyed (41) 205 Value Destroyed (1319) 1319 Prototype IDs (16) 320 Alien Tech Used (0) 0 Bonus (800) 800 TOTAL SCORE: 5944 Bonus ------- Registered with UFD 300 Met Optimus in HQ 500 Cogmind --------- Core Integrity 0/1000 Matter 240/300 Energy 47/100 System Corruption 3% Temperature Cool (0) Movement Hovering (60) Location -5/Factory Parts ------- > --- POWER (2) -------- (None) > --- PROPULSION (6) --- Antigrav System Gyrokinetic Inverter > --- UTILITY (6) ------ Advanced Cooling System 0b10 Decoder Chip [Scout] Propulsion Shielding > --- WEAPON (3) ------- Rocket Launcher > --- INVENTORY (5) ---- Improved Remote Datajack Peak State ------------ > --- POWER ------------ Improved Deuterium Engine Light Angular Momentum Engine > --- PROPULSION ------- Armored Huge Wheel Armored Huge Wheel Armored Huge Wheel > --- UTILITY ---------- Humpback Structural Scanner 0b10 Decoder Chip [Scout] Experimental Utility Shielding Makeshift Hacking Suite > --- WEAPON ----------- High-powered Shock Rifle Tesla Rifle Autogun > --- INVENTORY -------- Improved Deuterium Engine Improved Deuterium Engine Wheel Wheel Wheel Wheel Armored Wheel Armored Wheel Armored Wheel Armored Wheel High-capacity Storage Unit Compact Matter Pod Advanced Terrain Scan Processor Improved Targeting Computer Advanced Targeting Computer Advanced Recoil Stabilizer Propulsion Shielding Experimental Utility Shielding Experimental Utility Shielding Weapon Shielding Layered Light Armor Plating Layered Light Armor Plating Layered Light Armor Plating Hacking Suite System Guard Improved Light Cannon Flak Cannon Rocket Launcher Rocket Launcher CPS Tube CPS Tube CPS Tube Makeshift Hammer Ripper [Rating: 73] Favorites ----------- Power Ion Engine Engine Ion Engine Power Core Fusion Compressor Propulsion Wheel Treads Light Treads Wheel Wheel Hover Unit Gyrokinetic Inverter Utility Structural Scanner Device Structural Scanner Storage Humpback Processor 0b10 Decoder Chip [Scout] Hackware Makeshift Hacking Suite Protection Experimental Utility Shielding Weapon Rocket Launcher Energy Gun Tesla Rifle Energy Cannon Cooled Plasma Cannon Ballistic Gun Light Assault Rifle Ballistic Cannon Heavy Flak Cannon Launcher Rocket Launcher Impact Weapon Makeshift Hammer Slashing Weapon Ripper Piercing Weapon Spear Build | -11 -10 -10 -7 -5 ------- Run | Yrd Mat Sub Scr Fac Slots Evolved 10 | . . . . 10 Power 1 | . . . . 1 Propulsion 4 | . . . . 4 Utility 4 | . . . . 4 Weapon 1 | . . . . 1 Parts Attached 57 | 7 10 2 4 34 Power 7 | 1 2 . 1 3 Engine 6 | 1 2 . 1 2 Core 1 | . . . . 1 Reactor . | . . . . . Propulsion 18 | 2 3 . 1 12 Treads 2 | 2 . . . . Leg . | . . . . . Wheel 14 | . 3 . 1 10 Hover 2 | . . . . 2 Flight . | . . . . . Utility 15 | 2 4 . 1 8 Device 3 | 1 1 . . 1 Storage 4 | 1 2 . 1 . Processor 1 | . . . . 1 Hackware 2 | . . . . 2 Protection 5 | . 1 . . 4 Artifact . | . . . . . Weapon 17 | 2 1 2 1 11 Energy Gun 2 | . . . . 2 Energy Cannon 1 | . . . . 1 Ballistic Gun 5 | 2 . 1 . 2 Ballistic Cannon 3 | . . . 1 2 Launcher 3 | . 1 1 . 1 Special Weapon . | . . . . . Impact Weapon 1 | . . . . 1 Slashing Weapon 1 | . . . . 1 Piercing Weapon 1 | . . . . 1 Special Melee Weapon . | . . . . . Unidentified Prototypes 2 | . . . . 2 Parts Lost 27 | . 5 1 . 21 Power 3 | . 1 . . 2 Propulsion 9 | . 1 . . 8 Utility 6 | . 1 . . 5 Weapon 9 | . 2 1 . 6 Highest Loss Streak 10 | . 4 1 . 10 To Critical Strikes 1 | . . . . 1 Average Backups 19 | 3 10 14 22 26 Power 1 | . 1 2 2 1 Propulsion 7 | 1 5 9 9 5 Utility 6 | . . 2 6 11 Weapon 3 | . 2 1 3 5 Tool/Special . | . . . . . Unused Backups 23 | . 4 . 1 18 Power 2 | . . . 1 1 Propulsion 4 | . 3 . . 1 Utility 10 | . . . . 10 Weapon 2 | . 1 . . 1 Tool/Special 5 | . . . . 5 Average Slot Usage (%) 82 | . 90 96 91 62 Engine 11 | . 13 14 14 6 Treads 4 | . 16 . . . Wheel 19 | . 11 28 26 17 Device 7 | . 11 14 7 4 Storage 10 | . 14 14 14 4 Processor 1 | . . . . 4 Hackware 1 | . . . . 3 Protection 1 | . . . . 3 Ballistic Gun 7 | . 15 11 3 3 Ballistic Cannon 5 | . . . 10 4 Launcher 7 | . 6 13 14 . Peak Build Rating 73 | 7 9 9 29 73 Average Rating 24 | 5 7 8 17 49 On Entrance 10 | . 7 9 9 29 Naked Turns . | . . . . . Heaviest Build 237 | 12 50 51 222 237 Greatest Support 84 | 40 40 20 28 84 Greatest Overweight (x) 11 | . 4 2 11 8 Average Overweight (x) 2 | . . 2 4 1 Largest Inventory Capacity 35 | 8 20 20 35 35 Average Capacity 23 | 7 13 20 27 29 Most Carried 35 | 4 15 15 34 35 Average Carried 20 | 3 10 14 22 26 Final Capacity 35 | 8 20 20 35 5 Final Carried 34 | 4 15 14 34 1 Class Distribution -------------------- 57% | Mutant 31% | Hauler-Mutant 10% | Hauler-Bomber Dominant Class ---------------- Mutant | -10/Materials Mutant | -10/Subcaves Mutant | -7/Scraptown Hauler-Mutant | -5/Factory Resources | -11 -10 -10 -7 -5 ----------- Run | Yrd Mat Sub Scr Fac Matter Collected 1655 | 302 385 80 200 688 Remotely 147 | 10 137 . . . Salvage Created 1201 | 104 499 54 . 544 Parts 72 | 3 38 7 . 24 Haulers Intercepted . | . . . . . Recyclers Shooed . | . . . . . Parts Field Recycled . | . . . . . Retrieved Matter . | . . . . . Parts Self-Destructed 8 | . . 8 . . Prevented . | . . . . . Kills | -11 -10 -10 -7 -5 ------- Run | Yrd Mat Sub Scr Fac Combat Hostiles Destroyed 33 | . 15 5 . 13 Melee 1 | . . . . 1 Guns 14 | . 8 1 . 5 Cannons 6 | . . . . 6 AOE 12 | . 7 4 . 1 Classes Destroyed 9 | 2 4 . . 3 Worker 3 | . 3 . . . Tunneler 1 | 1 . . . . Recycler 3 | 1 1 . . 1 Watcher 1 | . 1 . . . Swarmer 14 | . 6 3 . 5 Grunt 11 | . 9 2 . . Sentry 1 | . . . . 1 Hunter 2 | . . . . 2 Programmer 5 | . . . . 5 Best Kill Streak 5 | 2 4 3 . 5 Combat Bots Only 5 | . 4 3 . 5 Max Kills in Single Turn 3 | 1 2 3 . 2 Gunslinging . | . . . . . Exploded 3 | . 1 3 . 1 Melee 1 | . . . . 1 Uniques/NPCs Destroyed . | . . . . . Combat | -11 -10 -10 -7 -5 -------- Run | Yrd Mat Sub Scr Fac Hostile Shots Fired 374 | . 88 8 . 278 Missed 118 | . 25 4 . 89 Hits 256 | . 63 4 . 189 Melee 3 | . . . . 3 Projectile 253 | . 63 4 . 186 AOE 1 | . . . . 1 Critical Strikes 8 | . 1 . . 7 Actively Blocked 1 | . . . . 1 Part Disruptions 1 | . . . . 1 Damage Taken 4707 | . 751 49 . 3907 Core 1131 | . 113 11 . 1007 Absorbed by Shields 28 | . . . . 28 Redirected to Shielding 155 | . . . . 155 Core Remaining (%) 75 | 100 . . 50 . Volleys Fired 94 | 8 49 6 . 31 Largest 3 | 2 2 2 . 3 Hottest 125 | 40 53 53 . 125 Shots Fired 194 | 16 87 10 . 81 Gun 144 | 16 76 4 . 48 Cannon 33 | . . . . 33 Launcher 17 | . 11 6 . . Special . | . . . . . Kinetic 173 | 16 76 4 . 77 Thermal . | . . . . . Explosive 17 | . 11 6 . . Electromagnetic 4 | . . . . 4 Robot Hit Streak 6 | 2 6 6 . 6 Robot Miss Streak 8 | 3 6 . . 8 Penetration Max . | . . . . . Secondary Targets 4 | . 4 . . . Max Gunslinging Chain 1 | . 1 . . . Shots Hit Robots 132 | 8 49 6 . 69 Core Hits 90 | 4 29 6 . 51 Critical Kills . | . . . . . Critical Parts Destroyed 3 | . . . . 3 Critical Strikes 4 | . . . . 4 Corrupt 1 | . . . . 1 Smash 3 | . . . . 3 Melee Attacks 22 | . . . . 22 Impact 15 | . . . . 15 Slashing 6 | . . . . 6 Piercing 1 | . . . . 1 Sneak Attacks . | . . . . . Combat Hostiles . | . . . . . Follow-up Attacks . | . . . . . Damage Inflicted 3186 | 89 1087 354 . 1656 Guns 1145 | 89 436 23 . 597 Cannons 492 | . . . . 492 Explosions 1037 | . 632 331 . 74 Melee 489 | . . . . 489 Ramming 23 | . 19 . . 4 Kinetic 1565 | 89 436 23 . 1017 Thermal 96 | . 96 . . . Explosive 941 | . 536 331 . 74 Electromagnetic 72 | . . . . 72 Impact 452 | . . . . 452 Slashing . | . . . . . Piercing 37 | . . . . 37 Highest Corruption 3 | . . . . 3 Average Corruption 1 | . . . . 1 Corruption Purged . | . . . . . Corruption Blocked . | . . . . . Effects 11 | . . . . 11 Message Errors 3 | . . . . 3 Matter Fused 1 | . . . . 1 Heat Flow Errors 1 | . . . . 1 Energy Discharges 2 | . . . . 2 Data Loss (minor) 2 | . . . . 2 Data Loss (major) 2 | . . . . 2 Overload Shots . | . . . . . Overflow Damage 288 | . 75 40 . 173 Projectiles . | . . . . . Explosions 115 | . 75 40 . . Melee 173 | . . . . 173 Knockbacks 10 | . . . . 10 Impact 1 | . . . . 1 Kinetic 9 | . . . . 9 Secondary . | . . . . . Self-Inflicted Damage 110 | . 109 . . 1 Shots 4 | . 4 . . . Rammed 4 | . 2 . . 2 Targets Rammed 4 | . 2 . . 2 Kicked . | . . . . . Crushed . | . . . . . Highest Temperature 262 | . 30 . . 262 Average Temperature 63 | . 9 . . 85 Received Heat Transfer 906 | . 261 21 . 624 Siege Activations . | . . . . . Martial Activations . | . . . . . Shielding Activations . | . . . . . Robots Disrupted . | . . . . . Combat Hostiles . | . . . . . Robots Corrupted . | . . . . . Combat Hostiles . | . . . . . Parts Fried 1 | . . . . 1 Impact Corruptions 5 | . . . . 5 Robots Melted . | . . . . . Combat Hostiles . | . . . . . Parts Melted . | . . . . . Heat Transferred 50 | . 50 . . . Parts Sabotaged 4 | . . . . 4 Parts Stolen . | . . . . . Parts Stripped . | . . . . . Power Chain Reactions . | . . . . . Alert | -11 -10 -10 -7 -5 ------- Run | Yrd Mat Sub Scr Fac Maximum Alert Level 1 | . 1 . . 1 Low Security (%) 76 | 100 76 . . 75 Level 1 23 | . 23 . . 24 Level 2 . | . . . . . Level 3 . | . . . . . Level 4 . | . . . . . Level 5 . | . . . . . High Security . | . . . . . Max Security . | . . . . . Peak Influence 288 | 10 288 . . 278 Initial . | . . . . . Average 105 | 1 82 . . 130 Influence Increases 1661 | 10 688 120 . 843 Destroy 0b10 Robot/C 660 | . 300 100 . 260 Destroy 0b10 Robot/NC 40 | 10 25 . . 5 Destroy Leader 142 | . 72 20 . 50 Successful Hack 59 | . 23 . . 36 Select Force Hacks 30 | . 30 . . . Disable Machine 150 | . 90 . . 60 Destroy Structure 190 | . 118 . . 72 Partial Spotted 30 | . . . . 30 Lose Combat Pursuer 360 | . 30 . . 330 Influence Decreases 1558 | 10 473 224 111 740 Entered New Map 215 | . . 104 111 . Time Decay 780 | 10 276 110 . 384 Lost Part 270 | . 50 10 . 210 Purge Threat 293 | . 147 . . 146 Squads Dispatched 17 | . 5 . . 12 Investigation 9 | . 3 . . 6 Extermination 3 | . . . . 3 Reinforcement 3 | . 2 . . 1 Assault 2 | . . . . 2 Garrison . | . . . . . Intercept . | . . . . . Searches Triggered . | . . . . . Construction Impeded 1 | . . . . 1 Haulers Reinforced . | . . . . . Active Scanning Responses . | . . . . . Cargo Convoy Interrupts 1 | . . . . 1 Stealth | -11 -10 -10 -7 -5 --------- Run | Yrd Mat Sub Scr Fac Distress Signals . | . . . . . Communications Jammed . | . . . . . Distress Signals . | . . . . . Times Spotted 78 | . 24 5 . 49 Peak Tracking Total 15 | . 5 3 . 15 Tactical Retreats 12 | . 2 . . 10 Traps | -11 -10 -10 -7 -5 ------- Run | Yrd Mat Sub Scr Fac Traps Triggered 6 | . 3 . . 3 Indirectly . | . . . . . Trap Hack Attempts . | . . . . . Triggered . | . . . . . Disarmed . | . . . . . Reprogrammed . | . . . . . Reused . | . . . . . Traps Extracted . | . . . . . Installed . | . . . . . Triggered . | . . . . . Machines | -11 -10 -10 -7 -5 ---------- Run | Yrd Mat Sub Scr Fac Machines Disabled 10 | . 6 . . 4 Max in Single Turn 4 | . 4 . . 4 Garrison Access 1 | . . . . 1 Machines Repaired . | . . . . . Machines Dismantled . | . . . . . Machines Sabotaged . | . . . . . Overloaded Fab Kills . | . . . . . Hacking | -11 -10 -10 -7 -5 --------- Run | Yrd Mat Sub Scr Fac Machines Accessed 25 | . 7 . 3 15 Terminals 11 | . 5 . . 6 Fabricators 2 | . . . . 2 Repair Stations . | . . . . . Recycling Units 6 | . 2 . . 4 Scanalyzers 2 | . . . . 2 Garrison Access 1 | . . . . 1 Total Hacks 64 | . 19 . 14 31 Successful 43 | . 12 . 14 17 Failed 21 | . 7 . . 14 Catastrophic 2 | . . . . 2 Database Lockouts . | . . . . . Manual 31 | . 12 . . 19 Terminals 32 | . 15 . . 17 Fabricators 5 | . . . . 5 Repair Stations . | . . . . . Recycling Units 9 | . 4 . . 5 Scanalyzers 3 | . . . . 3 Garrison Access 1 | . . . . 1 Terminal Hacks 22 | . 5 . 14 3 Record 14 | . . . 13 1 Part Schematic 1 | . 1 . . . Robot Analysis 2 | . 2 . . . Alert Level 1 | . 1 . . . Unreport Threat 3 | . 1 . . 2 Proto ID Catalog 1 | . . . 1 . Fabricator Hacks 3 | . . . . 3 Load Schematic 2 | . . . . 2 Build 1 | . . . . 1 Repair Station Hacks . | . . . . . Recycling Unit Hacks 2 | . 2 . . . Process 1 | . 1 . . . Retrieve Matter 1 | . 1 . . . Scanalyzer 2 | . . . . 2 Insert Component 1 | . . . . 1 Analyze 1 | . . . . 1 Garrison Access Hacks . | . . . . . Unauthorized Hacks 14 | . 5 . . 9 Terminals 8 | . 4 . . 4 Botnet 8 | . 4 . . 4 Fabricators 1 | . . . . 1 Recompile 1 | . . . . 1 Repair Stations . | . . . . . Recycling Units 5 | . 1 . . 4 Tunnel 1 | . 1 . . . Fedlink 4 | . . . . 4 Scanalyzers . | . . . . . Garrison Access . | . . . . . Data Cores Recovered . | . . . . . Used . | . . . . . Hacking Detections 15 | . 5 . . 10 Full Trace Events 2 | . 1 . . 1 Feedback Events . | . . . . . Feedback Blocked . | . . . . . Robot Schematics Acquired . | . . . . . Robots Built . | . . . . . Authchips . | . . . . . Time . | . . . . . Total Robot Build Rating . | . . . . . Part Schematics Acquired 2 | . 1 . . 1 Parts Built 2 | . . . . 2 Authchips 1 | . . . . 1 Time 28 | . . . . 28 Total Part Build Rating 8 | . . . . 8 Parts Repaired . | . . . . . Time . | . . . . . Parts Recycled . | . . . . . Recycled Matter 190 | . 190 . . . Retrieved Matter 364 | . 364 . . . Retrieved Components . | . . . . . Parts Scanalyzed 1 | . . . . 1 Part Schematics Acquired 1 | . . . . 1 Parts Damaged . | . . . . . Bothacking | -11 -10 -10 -7 -5 ------------ Run | Yrd Mat Sub Scr Fac Used RIF Installer . | . . . . . Robots Hacked . | . . . . . Non-combat . | . . . . . Combat . | . . . . . Robot Hacks Applied . | . . . . . Relay Couplers Released 3 | . . . . 3 Machine Destruction 3 | . . . . 3 Fabnet Peak Effective % . | . . . . . Robots Rewired . | . . . . . Allies Hacked . | . . . . . Hacks Repelled . | . . . . . Allies | -11 -10 -10 -7 -5 -------- Run | Yrd Mat Sub Scr Fac Total Allies . | . . . . . Largest Group . | . . . . . Highest-Rated Group . | . . . . . Highest-Rated Ally . | . . . . . Total Orders . | . . . . . Ally Attacks . | . . . . . Total Damage . | . . . . . Kills . | . . . . . Allies Corrupted . | . . . . . Allies Melted . | . . . . . Intel | -11 -10 -10 -7 -5 ------- Run | Yrd Mat Sub Scr Fac Active Infowar (turns) 2788 | . 338 234 900 1316 Structural 2718 | . 338 234 900 1246 Decoding 1313 | . . . . 1313 Robot Analysis Total 2 | . 2 . . . Derelict Logs Recovered . | . . . . . Drone Launches . | . . . . . Drone Recoveries . | . . . . . Decoded 0b10 Intel 22 | . . . . 22 Traps 22 | . . . . 22 Exploration | -11 -10 -10 -7 -5 ------------- Run | Yrd Mat Sub Scr Fac Turns Passed 4633 | 91 1161 234 1738 1409 Spaces Moved 3162 | 38 772 191 1158 1003 Core 333 | 5 . . . 328 Treads 351 | 33 318 . . . Legs . | . . . . . Wheels 2434 | . 454 191 1158 631 Hover 44 | . . . . 44 Flight . | . . . . . Fastest Speed 50 | 50 95 110 110 50 Average Speed 124 | 145 125 110 146 102 Slowest Speed 245 | 160 240 110 245 210 Overloaded Moves . | . . . . . Propulsion Burnouts . | . . . . . Robots Hopped . | . . . . . Potential Cave-ins . | . . . . . Cave-ins Triggered . | . . . . . Exploration Rate (%) 48 | 5 99 18 88 34 Regions Visited 4 Branch Regions 2 Pre-discovered Areas 3 | . 1 . 1 1 Known Exits Taken . | . . . . . Unknown Exits Taken 4 | 1 1 1 1 . Scrap Searched 8 | . . . 8 . Spaces Dug 14 | . . 7 . 7 Terrain Destroyed 210 | . 127 42 . 41 Melee 7 | . . . . 7 Projectile . | . . . . . AOE 203 | . 127 42 . 34 Terrain Rammed . | . . . . . Walls Destroyed . | . . . . . Machines Disabled . | . . . . . Actions | -11 -10 -10 -7 -5 --------- Run | Yrd Mat Sub Scr Fac Total 3646 | 56 885 205 1208 1292 Wait 191 | . 26 7 1 157 Move 3158 | 37 771 190 1157 1003 Hop . | . . . . . Pick Up 69 | 4 15 . 38 12 Fast Attach 33 | 7 7 1 2 16 Attach 27 | . 2 1 1 23 Detach 9 | . 1 . . 8 Swap 12 | . 5 . 1 6 Drop 22 | . 7 . 8 7 Fire 94 | 8 49 6 . 31 Melee 22 | . . . . 22 Ram 2 | . . . . 2 Kick . | . . . . . Crush 2 | . 2 . . . Escape Stasis 5 | . . . . 5 Rewire . | . . . . . Trap . | . . . . . Miscellaneous . | . . . . . Route ------- -11/Scrapyard -10/Materials (discovered 6 exits: [*Mat x3] / [*Min x2] / [*Sub]) -10/Subcaves -7/Scraptown (discovered 2 exits: *Fac x2) -5/Factory History --------- Turn | Location | Event 6 | -11/Scrapyard | Discovered new exit (range 15) 92 | -11/Scrapyard | Entered Materials 190 | -10/Materials | Discovered new exit (range 7) 343 | -10/Materials | Build established: Mutant 523 | -10/Materials | Discovered new exit (range 8) 609 | -10/Materials | Discovered new exit (range 10) 764 | -10/Materials | Lost 4 parts (1n1u2w) 835 | -10/Materials | Discovered new exit (range 15) 974 | -10/Materials | Discovered new exit (range 16) 1110 | -10/Materials | Discovered new exit (range 16) 1253 | -10/Materials | Entered Subcaves 1254 | -10/Subcaves | Approached by a straggling Scientist 1458 | -10/Subcaves | Scientist uncovered a shortcut to Scraptown 1487 | -10/Subcaves | Entered Scraptown 1690 | -7/Scraptown | Discovered new exit (range 13) 1784 | -7/Scraptown | Visited Assassins FH 1808 | -7/Scraptown | Visited The Evicted 1817 | -7/Scraptown | Visited Cyclists 2006 | -7/Scraptown | Visited Cave Peace 2062 | -7/Scraptown | Visited IN-MT5's Study 2087 | -7/Scraptown | Visited Symbiants 2106 | -7/Scraptown | Visited UFD Registry 2106 | -7/Scraptown | Registered with UFD as "Pyroninja" 2132 | -7/Scraptown | Visited Bundlers 2196 | -7/Scraptown | Entered Cyclist Reading Room 2274 | -7/Scraptown | Visited Observation Area 2320 | -7/Scraptown | Visited Science Guys 2535 | -7/Scraptown | Visited LU-1G1's Boring Crew 2616 | -7/Scraptown | Visited Infowarlord's Domain 2661 | -7/Scraptown | Visited Scrapoid Research Area 2691 | -7/Scraptown | Visited Supply Room 2695 | -7/Scraptown | Build established: Hauler-Mutant 2766 | -7/Scraptown | Visited DA-N13 Charitable Foundation 2776 | -7/Scraptown | Found DCF Scrap (28 items) 2857 | -7/Scraptown | Visited Curators Association 2943 | -7/Scraptown | Visited Chapter 10 3119 | -7/Scraptown | Met Optimus 3119 | -7/Scraptown | Accepted into 0bPrime 3221 | -7/Scraptown | Discovered new exit (range 3) 3225 | -7/Scraptown | Entered Factory 3225 | -5/Factory | Evolved 10 slots: Power x1, Propulsion x4, Utility x4, Weapon x1 3680 | -5/Factory | Lost 5 parts (3n2w) 3793 | -5/Factory | Fabricated Arm. Huge Wheel (x2) 3966 | -5/Factory | Build established: Hauler-Bomber 4293 | -5/Factory | Loaded intel: 8 recycling unit locations 4315 | -5/Factory | Spotted B-75 Beast 4409 | -5/Factory | Lost 10 parts (1p4n4u1w) 4420 | -5/Factory | Core integrity fell below 50% 4422 | -5/Factory | Cargo convoy interrupted 4425 | -5/Factory | Learned location of Protoforge (-3) 4485 | -5/Factory | Core integrity fell below 20% 4634 | -5/Factory | Destroyed by S-27 Virus with Autogun Last Messages --------------- UFD!SANITIZING UFD!... 04592_ ALERT: Suspicious activity at Recycling Unit F006. Dispatching Investigation squad. 04598_ System corrupted: Component data lost. 04601_ Acquired Gyrokinetic Inverter. 04605_ Connecting with Terminal... >>Query(Wolf 359 System) A red dwarf star system, fourth nearest from the Sun at 2.39 parsecs. Destination of the [ISCS Leo]. >>Trojan(Botnet) Trojan loaded successfully. Testing... Terminal linked with 3 systems. Awaiting botnet instructions. 04605_ ALERT: Suspicious activity at Terminal F009. Dispatching Investigation squad. 04616_ Acquired Antigrav System. 04628_ PP V LCRI0ZYNSX I2LY%R3QK#:G M3JRLG7 Map ----- +----------------------------------------------------+ | # ####+### Y"#???????????? | | # # + ""#???????????? | | # # ### ""#???????????? | | # ] # #?# ""#???????????? | | # + #?# #???????????? | | #" # #?######+##???????+##?? | | #T # ########[#??##### ? | | #" + !%! ? | | # # ####??????? % ?? | | ###### #????????? %%%% ""?? | | ?????# #########? %%%%%""?? | | ?????# ## !# %%%% """? | | ?????# ## # % | | ?????# / """ / %%%%%""?? | | ?????# ##### """ # %%%% ""?? | | ?????# #???#] """ # %%%" ""?? | | ?????# #???# #? ?? | | ?????# #???#####+##? %""" """? | | ?????# #????????????? """" ""?? | | ?????# #????????????? """"????? | | ?????# #?????????????? ????? | | ?????# #?????????????? ????? | | ?????# #??????????????? ????? | | ?????#s########???????? ????? | | ?????# #????????? ???? | | ?????# @ ""#?????????""""????? | | ?????# ]]! T"#?????????????????? | | ?????# ]! ""#?????????????????? | | ?????# ]! #?????????????????? | | ?????# #?????????????????? | | ?????# #?????????????????? | | ?????# +?????????????????? | | ?????# #?????????????????? | | ?????####+#####?????????????????? | | ????????????????????????????????? | | ????????????????????????????????? | | ????????????????????????????????? | | ????????????????????????????????? | | ????????????????????????????????? | | ????????????????????????????????? | | ????????????????????????????????? | | ????????????????????????????????? | | ????????????????????????????????? | | ????????????????????????????????? | | ????????????????????????????????? | | ????????????????????????????????? | | ????????????????????????????????? | | ????????????????????????????????? | | ????????????????????????????????? | | ????????????????????????????????? | +----------------------------------------------------+ Best States ------------- Heat Dissipation 71 Energy Generation 29 Energy Capacity 340 Matter Stores 300 Matter Capacity 300 Sight Range 16 Terrain Scan Density 10 Armor Coverage 150 Propulsion Shielding 33 Utility Shielding 90 Weapon Shielding 33 Evasion (%) 53 Recoil Reduction 2 Offensive Hacking 11 Authchip Count 1 Item Schematics ----------------- Huge Storage Unit | -10/Materials | Hacked Arm. Huge Wheel | -5/Factory | Scanalyzed Robot Schematics ------------------ None Fabricated ------------ Arm. Huge Wheel | x2 | -5/Factory | Authchip Repaired ---------- Nothing Alien Tech Used ----------------- None Achievements -------------- None Challenges ------------ None Game ------ Seed SchematicMultinovaDriver Manual? 0 Play Time 00:52:45 Cumulative 182.9 hours Start 2025.05.26 @ 11:24:03 End 2025.05.26 @ 12:28:03 Sessions 1 Manual Loads 0 Difficulty Rogue Special Mode None Game No. 98 Rogue 98 Adventurer 0 Explorer 0 Win Type - Total 12 Types 5/0/4/1/2/0/0/0/0/0 Lore% 77 Gallery% 64 Achievement% 64 Wizard Run 0 Options --------- Layout 1 ASCII 0 Keyboard 0 Movement Numpad Keybinds 0 Fullscreen 1 Font 24/Smallcaps Map View 50x35 Zoom Use 0% Tactical HUD 1 Map Filters NONE Filters NONE Steam 1 RUN: c13bd940-1a12-410a-8d45-76bba7753019